[Event "TUR-chT Superleague 2018"]
[Site "Ankara"]
[Date "2018.07.29"]
[Round "5"]
[White "Shevchenko, Kirill"]
[Black "Ozenir, Ekin Baris"]
[Result "1-0"]
[ECO "E16"]
[WhiteElo "2554"]
[BlackElo "2300"]
[Annotator "ChessBase"]
[PlyCount "151"]
[EventDate "2018.07.25"]
[EventType "team-tourn"]
[EventCountry "TUR"]
[SourceTitle "playchess.com"]
[Source "ChessBase"]
[SourceQuality "1"]
[TimeControl "40/5400+30:1800+30"]

1. d4 {[%emt 0:00:30]} Nf6 {[%emt 0:01:00]} 2. c4 {[%emt 0:00:30]} e6 {[%emt 0:00:30]} 3. g3 {[%emt 0:00:00]} d5 {[%emt 0:00:30]} 4. Bg2 {[%emt 0:00:00]} Bb4+ {[%emt 0:00:30]} 5. Nd2 {[%emt 0:00:30]} O-O {[%emt 0:00:30]} 6. Ngf3 {[%emt 0:00:30]} b6 {[%emt 0:00:30]} 7. O-O {[%emt 0:00:30]} Bb7 {[%emt 0:00:30]} 8. b3 {[%emt 0:00:30]} c5 {[%emt 0:07:30]} 9. Bb2 {[%emt 0:04:30]} Nc6 {[%emt 0:04:30]} 10. Rc1 {[%emt 0:26:30]} Rc8 {[%emt 0:15:30]} 11. cxd5 {[%emt 0:04:30]} Nxd5 {[%emt 0:02:30]} 12. a3 {[%emt 0:02:30]} Bxd2 {[%emt 0:01:30]} 13. Qxd2 {[%emt 0:00:30]} Na5 {[%emt 0:03:30]} 14. Qd3 {[%emt 0:04:30]} Nf6 {[%emt 0:07:30]} 15. Nd2 {[%emt 0:10:30]} Bxg2 {[%emt 0:03:30]} 16. Kxg2 {[%emt 0:00:30]} Qe7 {[%emt 0:07:30]} 17. Nc4 {[%emt 0:05:30]} Nxc4 {[%emt 0:04:30]} 18. Rxc4 {[%emt 0:01:30]} Rfd8 {[%emt 0:02:30]} 19. Rfc1 {[%emt 0:03:30]} e5 {[%emt 0:03:30]} 20. Qf3 {[%emt 0:02:30]} exd4 {[%emt 0:04:30]} 21. Bxd4 {[%emt 0:00:30]} Nd7 {[%emt 0:06:30]} 22. b4 {[%emt 0:07:30]} Re8 {[%emt 0:04:14]} 23. bxc5 {[%emt 0:03:30]} bxc5 {[%emt 0:00:48]} 24. e3 {[%emt 0:01:00]} Qe4 {[%emt 0:03:26]} 25. Qxe4 {[%emt 0:02:01]} Rxe4 {[%emt 0:00:01]} 26. R4c3 {[%emt 0:00:15]} g6 {[%emt 0:06:39]} 27. Kf3 {[%emt 0:02:34]} f5 {[%emt 0:01:51]} 28. Ke2 {[%emt 0:02:45]} Rc6 {[%emt 0:03:11]} 29. f3 {[%emt 0:02:49]} cxd4 {[%emt 0:03:37]} 30. Rxc6 {[%emt 0:00:37]} Rxe3+ {[%emt 0:00:03]} 31. Kf1 {[%emt 0:00:34]} Rxf3+ {[%emt 0:02:23]} 32. Kg2 {[%emt 0:01:15]} Rxa3 {[%emt 0:00:43]} 33. Rd6 {[%emt 0:00:58]} Nf8 {[%emt 0:00:26]} 34. Rc7 {[%emt 0:01:53]} Rc3 {[%emt 0:01:02]} 35. Rxa7 {[%emt 0:00:17]} Rc8 {[%emt 0:00:00]} 36. Rxd4 {[%emt 0:01:00]} Rc2+ {[%emt 0:00:30]} 37. Kf3 {[%emt 0:02:21]} Rc3+ {[%emt 0:00:04]} 38. Ke2 {[%emt 0:02:01]} Rc2+ {[%emt 0:00:14]} 39. Ke1 {[%emt 0:00:43]} Rc1+ {[%emt 0:00:36]} 40. Kd2 {[%emt 0:00:00]} Rc6 {[%emt 0:00:42]} 41. Rb4 {[%emt 0:03:57]} Rf6 {[%emt 0:08:30]} 42. Rbb7 {[%emt 0:01:30]} h6 {[%emt 0:03:31]} 43. Rg7+ {[%emt 0:02:30]} Kh8 {[%emt 0:00:29]} 44. Ke3 {[%emt 0:03:30]} Ne6 {[%emt 0:07:53]} 45. Rh7+ {[%emt 0:03:30]} Kg8 {[%emt 0:00:05]} 46. Rxh6 {[%emt 0:00:00]} Ng5 {[%emt 0:04:41]} 47. Rh4 {[%emt 0:03:00]} Re6+ {[%emt 0:01:29]} 48. Kf2 {[%emt 0:01:30]} Nf7 {[%emt 0:03:49]} 49. Rb4 {[%emt 0:00:43]} Kg7 {[%emt 0:00:30]} 50. Rbb7 {[%emt 0:06:38]} Rf6 {[%emt 0:00:07]} 51. Kf3 {[%emt 0:01:27]} Kg8 {[%emt 0:00:43]} 52. Kg2 {[%emt 0:03:18]} Kg7 {[%emt 0:00:11]} 53. Re7 {[%emt 0:02:00]} Kg8 {[%emt 0:00:15]} 54. Kf2 {[%emt 0:00:15]} Kg7 {[%emt 0:00:21]} 55. Ke3 {[%emt 0:00:00]} Kg8 {[%emt 0:00:23]} 56. Rad7 {[%emt 0:00:18]} Kg7 {[%emt 0:00:18]} 57. h3 {[%emt 0:05:23]} Kg8 {[%emt 0:00:21]} 58. Kd4 {[%emt 0:00:00]} Kg7 {[%emt 0:00:49]} 59. Kd5 {[%emt 0:00:27]} f4 {[%emt 0:00:37]} 60. g4 {[%emt 0:00:45]} f3 {[%emt 0:00:46]} 61. Re1 {[%emt 0:00:23]} f2 {[%emt 0:00:30]} 62. Rf1 {[%emt 0:00:00]} Rf4 {[%emt 0:00:21]} 63. Ra7 {[%emt 0:01:50]} Kg8 {[%emt 0:01:10]} 64. Ra2 {[%emt 0:00:25]} Ng5 {[%emt 0:00:23]} 65. Raxf2 {[%emt 0:01:20]} Rxf2 {[%emt 0:00:16]} 66. Rxf2 {[%emt 0:00:30]} Nxh3 {[%emt 0:00:30]} 67. Ra2 {[%emt 0:00:00]} Kg7 {[%emt 0:00:45]} 68. Ke5 {[%emt 0:00:00]} Ng5 {[%emt 0:00:01]} 69. Ra7+ {[%emt 0:01:14]} Kh6 {[%emt 0:00:36]} 70. Re7 {[%emt 0:00:06]} Nh3 {[%emt 0:01:16]} 71. Kf6 {[%emt 0:00:42]} Ng5 {[%emt 0:00:19]} 72. Re3 {[%emt 0:02:39]} Nh7+ {[%emt 0:01:11]} 73. Kf7 {[%emt 0:00:09]} Kg5 {[%emt 0:01:42]} 74. Kg7 {[%emt 0:00:14]} Kxg4 {[%emt 0:01:01]} 75. Kxh7 {[%emt 0:00:06]} g5 {[%emt 0:00:25]} 76. Kg6 {[%emt 0:00:23]} 1-0

[Event "TUR-chT Superleague 2018"]
[Site "Ankara"]
[Date "2018.07.29"]
[Round "5"]
[White "Dastan, Muhammed Batuhan"]
[Black "Esen, Baris"]
[Result "1-0"]
[ECO "B90"]
[WhiteElo "2552"]
[BlackElo "2487"]
[Annotator "RC"]
[PlyCount "81"]
[EventDate "2018.07.25"]
[EventType "team-tourn"]
[EventCountry "TUR"]
[SourceTitle "playchess.com"]
[Source "ChessBase"]
[SourceQuality "1"]
[TimeControl "40/5400+30:1800+30"]

1. e4 {[%emt 0:00:30]} c5 {[%emt 0:01:00]} 2. Nf3 {[%emt 0:00:30]} d6 {[%emt 0:00:30]} 3. d4 {[%emt 0:00:30]} cxd4 {[%emt 0:00:30]} 4. Nxd4 {[%emt 0:00:30]} Nf6 {[%emt 0:00:30]} 5. Nc3 {[%emt 0:00:00]} a6 {[%emt 0:00:00]} 6. h4 {[%emt 0:00:00]} e5 {[%emt 0:01:00]} 7. Nb3 {[%emt 0:00:00]} Be7 {[%emt 0:00:00]} 8. Bg5 {[%emt 0:00:00]} Be6 {[%emt 0:01:00]} 9. Bxf6 {[%emt 0:00:00]} Bxf6 {[%emt 0:00:00]} 10. g3 {[%emt 0:00:00]} Be7 {[%emt 0:02:00]} 11. Qd2 {[%emt 0:00:00]} Nd7 {[%emt 0:00:30]} 12. O-O-O {[%emt 0:01:00]} Nb6 {[%emt 0:19:30]} 13. f4 {[%emt 0:09:30]} Rc8 {[%emt 0:05:30]} 14. f5 {[%emt 0:06:30]} Bd7 {[%emt 0:06:30]} 15. Kb1 {[%emt 0:02:30]} h5 {[%emt 0:08:30]} 16. Rh2 {[%emt 0:11:30]} Rh6 {[%emt 0:10:30]} 17. Rf2 {[%emt 0:04:30]} Kf8 {[%emt 0:07:30]} 18. Qe3 {[%emt 0:18:30]} Qc7 {[%emt 0:03:30]} 19. Qf3 {[%emt 0:10:30]} Bc6 {[%emt 0:01:30]} 20. Nd5 {[%emt 0:01:30]} Bxd5 {[%emt 0:08:30]} 21. exd5 {[%emt 0:00:30]} Bf6 {[%emt 0:02:54]} 22. c4 {[%emt 0:02:30]} Na4 {[%emt 0:03:33]} 23. Qe3 {[%emt 0:01:30]} Rh8 {[%emt 0:02:06]} 24. Rc2 {[%emt 0:01:30]} b6 {[%emt 0:00:33]} 25. Nd2 {[%emt 0:02:30]} a5 {[%emt 0:02:08]} 26. a3 {[%emt 0:02:30]} Nc5 {[%emt 0:03:42]} 27. b4 {[%emt 0:00:30]} axb4 {[%emt 0:00:55]} 28. axb4 {[%emt 0:00:30]} Nd7 {[%emt 0:00:00]} 29. Ne4 {[%emt 0:00:30]} Ra8 {[%emt 0:00:31]} 30. Rdd2 {[%emt 0:03:30]} Ke7 {[%emt 0:02:07]} 31. Ra2 {[%emt 0:00:30]} Qb7 {[%emt 0:01:53]} 32. Be2 {[%emt 0:03:42]} Rhc8 {[%emt 0:03:24]} 33. Rxa8 {[%emt 0:01:50]} Rxa8 {[%emt 0:01:49]} 34. Qb3 {[%emt 0:00:15]} g6 {[%emt 0:01:42]} 35. fxg6 {[%emt 0:01:10]} fxg6 {[%emt 0:00:05]} 36. Ra2 {[%emt 0:01:14]} Bg7 {[%emt 0:00:20]} 37. Nxd6 {[%emt 0:10:47]} Kxd6 {[%emt 0:00:59]} 38. c5+ {[%emt 0:00:04]} Ke7 {[%emt 0:02:01]} 39. c6 {[%emt 0:00:05]} Rxa2 {[%emt 0:00:13]} 40. d6+ {[%emt 0:00:00]} Kd8 {[%emt 0:01:05]} 41. cxb7 {[%emt 0:01:53]} 1-0

[Event "TUR-chT Superleague 2018"]
[Site "Ankara"]
[Date "2018.07.29"]
[Round "5"]
[White "Atalik, Ekaterina"]
[Black "Mammadzada, Gunay"]
[Result "0-1"]
[ECO "D11"]
[WhiteElo "2461"]
[BlackElo "2426"]
[Annotator "ChessBase"]
[PlyCount "102"]
[EventDate "2018.07.25"]
[EventType "team-tourn"]
[EventCountry "TUR"]
[SourceTitle "playchess.com"]
[Source "ChessBase"]
[SourceQuality "1"]
[TimeControl "40/5400+30:1800+30"]

1. d4 {[%emt 0:00:30]} d5 {[%emt 0:01:00]} 2. c4 {[%emt 0:00:30]} c6 {[%emt 0:00:30]} 3. Nf3 {[%emt 0:00:30]} Nf6 {[%emt 0:00:30]} 4. g3 {[%emt 0:00:00]} dxc4 {[%emt 0:00:00]} 5. Bg2 {[%emt 0:00:00]} Nbd7 {[%emt 0:00:00]} 6. a4 {[%emt 0:00:30]} a5 {[%emt 0:01:30]} 7. O-O {[%emt 0:02:30]} g6 {[%emt 0:03:30]} 8. Qc2 {[%emt 0:00:30]} Nb6 {[%emt 0:00:30]} 9. e4 {[%emt 0:00:30]} Bg7 {[%emt 0:01:30]} 10. Na3 {[%emt 0:00:30]} O-O {[%emt 0:03:30]} 11. Rd1 {[%emt 0:01:30]} Be6 {[%emt 0:18:30]} 12. Be3 {[%emt 0:02:30]} Ne8 {[%emt 0:06:30]} 13. Ng5 {[%emt 0:06:30]} Bg4 {[%emt 0:03:30]} 14. f3 {[%emt 0:01:30]} Bd7 {[%emt 0:00:30]} 15. Nxc4 {[%emt 0:03:30]} Nxc4 {[%emt 0:06:30]} 16. Qxc4 {[%emt 0:00:00]} Nd6 {[%emt 0:00:30]} 17. Qe2 {[%emt 0:03:00]} h6 {[%emt 0:10:30]} 18. Nh3 {[%emt 0:01:30]} Be6 {[%emt 0:01:30]} 19. Bf2 {[%emt 0:19:30]} Bb3 {[%emt 0:07:30]} 20. Rdc1 {[%emt 0:03:30]} Qb6 {[%emt 0:11:30]} 21. e5 {[%emt 0:12:30]} Nf5 {[%emt 0:01:30]} 22. d5 {[%emt 0:02:30]} Nd4 {[%emt 0:02:34]} 23. Qe4 {[%emt 0:03:30]} c5 {[%emt 0:00:07]} 24. Nf4 {[%emt 0:03:30]} Rfd8 {[%emt 0:05:24]} 25. h4 {[%emt 0:06:30]} g5 {[%emt 0:01:02]} 26. hxg5 {[%emt 0:00:30]} hxg5 {[%emt 0:00:01]} 27. Bxd4 {[%emt 0:04:30]} cxd4 {[%emt 0:00:31]} 28. Nd3 {[%emt 0:00:30]} Bxd5 {[%emt 0:01:13]} 29. Qf5 {[%emt 0:00:30]} Qh6 {[%emt 0:05:53]} 30. Rc7 {[%emt 0:06:03]} g4 {[%emt 0:01:52]} 31. Re1 {[%emt 0:05:02]} Be6 {[%emt 0:03:34]} 32. Qe4 {[%emt 0:02:28]} gxf3 {[%emt 0:00:10]} 33. Qxf3 {[%emt 0:01:40]} Rac8 {[%emt 0:01:27]} 34. Rxc8 {[%emt 0:03:06]} Rxc8 {[%emt 0:00:01]} 35. Nf4 {[%emt 0:00:01]} b6 {[%emt 0:01:43]} 36. Qb7 {[%emt 0:01:59]} Rc2 {[%emt 0:01:20]} 37. Qe4 {[%emt 0:02:25]} Rxb2 {[%emt 0:00:49]} 38. Qxd4 {[%emt 0:00:25]} Rb4 {[%emt 0:00:06]} 39. Qd8+ {[%emt 0:00:24]} Bf8 {[%emt 0:00:13]} 40. Rf1 {[%emt 0:00:00]} Rb2 {[%emt 0:01:30]} 41. Qd3 {[%emt 0:13:27]} Rb3 {[%emt 0:02:30]} 42. Qe4 {[%emt 0:06:12]} Rxg3 {[%emt 0:01:30]} 43. Nxe6 {[%emt 0:02:43]} Qxe6 {[%emt 0:01:30]} 44. Rc1 {[%emt 0:08:37]} Rg4 {[%emt 0:04:30]} 45. Qe2 {[%emt 0:01:29]} Rg5 {[%emt 0:02:30]} 46. Re1 {[%emt 0:01:18]} Bg7 {[%emt 0:00:30]} 47. Qd2 {[%emt 0:00:45]} Rxe5 {[%emt 0:01:29]} 48. Qd8+ {[%emt 0:00:38]} Kh7 {[%emt 0:00:18]} 49. Qd3+ {[%emt 0:00:00]} Qg6 {[%emt 0:00:36]} 50. Qh3+ {[%emt 0:00:38]} Rh5 {[%emt 0:00:17]} 51. Qd7 {[%emt 0:00:30]} Rh4 {[%emt 0:03:33]} 0-1

[Event "TUR-chT Superleague 2018"]
[Site "Ankara"]
[Date "2018.07.29"]
[Round "5"]
[White "Badelka, Olga"]
[Black "Nechaeva, Marina"]
[Result "1-0"]
[ECO "D52"]
[WhiteElo "2407"]
[BlackElo "2410"]
[Annotator "NA"]
[PlyCount "117"]
[EventDate "2018.07.25"]
[EventType "team-tourn"]
[EventCountry "TUR"]
[SourceTitle "playchess.com"]
[Source "ChessBase"]
[SourceQuality "1"]
[TimeControl "40/5400+30:1800+30"]

1. d4 {[%emt 0:00:30]} d5 {[%emt 0:01:00]} 2. c4 {[%emt 0:00:30]} c6 {[%emt 0:00:30]} 3. Nf3 {[%emt 0:00:30]} Nf6 {[%emt 0:00:30]} 4. Nc3 {[%emt 0:00:30]} e6 {[%emt 0:00:30]} 5. Bg5 {[%emt 0:00:30]} Nbd7 {[%emt 0:00:30]} 6. e3 {[%emt 0:00:00]} Qa5 {[%emt 0:00:00]} 7. cxd5 {[%emt 0:00:00]} Nxd5 {[%emt 0:00:00]} 8. Qd2 {[%emt 0:00:00]} b6 {[%emt 0:00:00]} 9. e4 {[%emt 0:04:00]} Nxc3 {[%emt 0:00:00]} 10. bxc3 {[%emt 0:00:30]} h6 {[%emt 0:08:30]} 11. Bh4 {[%emt 0:01:30]} Ba6 {[%emt 0:00:30]} 12. Bxa6 {[%emt 0:01:30]} Qxa6 {[%emt 0:00:00]} 13. Qe2 {[%emt 0:02:30]} Qxe2+ {[%emt 0:01:00]} 14. Kxe2 {[%emt 0:00:30]} Be7 {[%emt 0:00:30]} 15. Bg3 {[%emt 0:01:30]} Nf6 {[%emt 0:00:30]} 16. Nd2 {[%emt 0:14:30]} c5 {[%emt 0:09:30]} 17. f3 {[%emt 0:00:30]} Nh5 {[%emt 0:01:30]} 18. a4 $11 {[%emt 0:09:30]} Nxg3+ {[%emt 0:02:30]} 19. hxg3 {[%emt 0:00:30]} cxd4 {[%emt 0:11:30]} 20. cxd4 {[%emt 0:00:30]} O-O-O {[%emt 0:00:30]} 21. Ke3 {[%emt 0:04:30]} Kb7 {[%emt 0:02:30]} 22. Nc4 {[%emt 0:02:30]} Rc8 {[%emt 0:00:30]} 23. Rhc1 {[%emt 0:00:30]} Rc7 {[%emt 0:16:30]} 24. Ne5 {[%emt 0:04:30]} Rxc1 {[%emt 0:00:30]} 25. Rxc1 {[%emt 0:00:30]} Rf8 {[%emt 0:05:30]} 26. f4 {[%emt 0:02:30]} Bd6 {[%emt 0:02:30]} 27. Nc4 {[%emt 0:02:30]} Be7 {[%emt 0:03:30]} 28. Rb1 {[%emt 0:02:30]} Rc8 {[%emt 0:01:30]} 29. Kd3 {[%emt 0:01:30]} Ka6 {[%emt 0:00:00]} 30. Ne5 {[%emt 0:11:30]} f6 {[%emt 0:02:00]} 31. Nc4 {[%emt 0:00:30]} Rd8 {[%emt 0:01:30]} 32. Kc3 {[%emt 0:00:00]} Rd7 {[%emt 0:00:30]} 33. g4 {[%emt 0:03:00]} g6 {[%emt 0:04:30]} 34. Rb5 {[%emt 0:02:30]} Rd8 {[%emt 0:03:30]} 35. Rb1 {[%emt 0:06:30]} Rg8 {[%emt 0:09:47]} 36. Rh1 {[%emt 0:01:30]} h5 {[%emt 0:01:47]} 37. Ne3 {[%emt 0:05:31]} e5 {[%emt 0:06:14]} 38. fxe5 {[%emt 0:01:46]} fxe5 {[%emt 0:00:03]} 39. dxe5 {[%emt 0:01:35]} Bc5 {[%emt 0:02:30]} 40. Nd5 {[%emt 0:00:00]} Ka5 {[%emt 0:00:39]} 41. Kb3 {[%emt 0:08:38]} b5 {[%emt 0:18:20]} 42. axb5 {[%emt 0:00:30]} Kxb5 {[%emt 0:00:01]} 43. e6 {[%emt 0:14:30]} Kc6 {[%emt 0:04:14]} 44. gxh5 {[%emt 0:03:22]} gxh5 {[%emt 0:00:30]} 45. Rxh5 {[%emt 0:00:10]} Rxg2 {[%emt 0:07:35]} 46. e7 {[%emt 0:00:13]} Rg8 {[%emt 0:01:35]} 47. Rh6+ {[%emt 0:00:16]} Kb7 {[%emt 0:01:20]} 48. Nf6 {[%emt 0:02:17]} Rg3+ {[%emt 0:00:03]} 49. Kc4 {[%emt 0:00:00]} Bxe7 {[%emt 0:00:30]} 50. Rh7 {[%emt 0:00:27]} Kc6 {[%emt 0:00:30]} 51. Rxe7 {[%emt 0:00:00]} Ra3 {[%emt 0:00:27]} 52. Re6+ {[%emt 0:00:06]} Kc7 {[%emt 0:00:05]} 53. e5 {[%emt 0:00:54]} Ra1 {[%emt 0:00:58]} 54. Nd5+ {[%emt 0:00:38]} Kd8 {[%emt 0:00:06]} 55. Rh6 {[%emt 0:02:42]} Rc1+ {[%emt 0:00:50]} 56. Kd4 {[%emt 0:00:10]} Rd1+ {[%emt 0:00:21]} 57. Ke4 {[%emt 0:00:30]} Re1+ {[%emt 0:00:00]} 58. Kf5 {[%emt 0:00:26]} Kd7 {[%emt 0:00:00]} 59. Rd6+ {[%emt 0:00:24]} 1-0

[Event "TUR-chT Superleague 2018"]
[Site "Ankara"]
[Date "2018.07.29"]
[Round "5"]
[White "Kerigan, Demre"]
[Black "Sanal, Vahap"]
[Result "1-0"]
[ECO "C07"]
[WhiteElo "2366"]
[BlackElo "2515"]
[Annotator "ChessBase"]
[PlyCount "95"]
[EventDate "2018.07.25"]
[EventType "team-tourn"]
[EventCountry "TUR"]
[SourceTitle "playchess.com"]
[Source "ChessBase"]
[SourceQuality "1"]
[TimeControl "40/5400+30:1800+30"]

1. e4 {[%emt 0:00:30]} e6 {[%emt 0:01:00]} 2. d4 {[%emt 0:00:30]} d5 {[%emt 0:00:00]} 3. Nd2 {[%emt 0:00:30]} c5 {[%emt 0:00:00]} 4. exd5 {[%emt 0:00:30]} Qxd5 {[%emt 0:00:30]} 5. Ngf3 {[%emt 0:00:00]} cxd4 {[%emt 0:00:30]} 6. Bc4 {[%emt 0:00:00]} Qd8 {[%emt 0:00:00]} 7. O-O {[%emt 0:01:30]} Nc6 {[%emt 0:00:00]} 8. Qe2 {[%emt 0:03:30]} a6 {[%emt 0:00:30]} 9. a4 {[%emt 0:03:30]} Bd6 {[%emt 0:05:30]} 10. Nb3 {[%emt 0:03:30]} Qc7 {[%emt 0:09:30]} 11. Rd1 {[%emt 0:09:30]} Ne5 {[%emt 0:17:30]} 12. Nxe5 {[%emt 0:01:30]} Bxe5 {[%emt 0:00:00]} 13. Nxd4 {[%emt 0:15:30]} Bxh2+ {[%emt 0:06:00]} 14. Kh1 {[%emt 0:00:00]} Be5 {[%emt 0:12:30]} 15. Ra3 {[%emt 0:02:00]} Ne7 {[%emt 0:02:30]} 16. Rc3 {[%emt 0:06:30]} Nc6 {[%emt 0:03:30]} 17. Nxc6 {[%emt 0:02:30]} bxc6 {[%emt 0:00:30]} 18. Rcd3 {[%emt 0:20:30]} O-O {[%emt 0:02:30]} 19. Bg5 {[%emt 0:01:30]} Bxb2 {[%emt 0:10:30]} 20. c3 {[%emt 0:07:05]} Ba3 {[%emt 0:00:30]} 21. Bd8 {[%emt 0:02:28]} Qf4 {[%emt 0:09:48]} 22. Rf3 {[%emt 0:07:34]} Qb8 {[%emt 0:08:30]} 23. Bf6 {[%emt 0:02:17]} gxf6 {[%emt 0:02:48]} 24. Rg3+ {[%emt 0:00:41]} Qxg3 {[%emt 0:00:30]} 25. fxg3 {[%emt 0:00:00]} Be7 {[%emt 0:00:53]} 26. Qg4+ {[%emt 0:01:42]} Kh8 {[%emt 0:00:30]} 27. Qe4 {[%emt 0:00:00]} Kg7 {[%emt 0:03:51]} 28. g4 {[%emt 0:02:48]} h6 {[%emt 0:01:16]} 29. Qxc6 {[%emt 0:01:05]} Rb8 {[%emt 0:01:46]} 30. Bxa6 {[%emt 0:01:06]} Bxa6 {[%emt 0:01:36]} 31. Qxa6 {[%emt 0:00:30]} Bc5 {[%emt 0:00:00]} 32. Qc6 {[%emt 0:01:46]} Rfc8 {[%emt 0:00:07]} 33. Qe4 {[%emt 0:00:00]} Bb6 {[%emt 0:01:07]} 34. c4 {[%emt 0:02:56]} Bc7 {[%emt 0:00:44]} 35. Rb1 {[%emt 0:00:29]} Ra8 {[%emt 0:00:38]} 36. c5 {[%emt 0:00:22]} Ra5 {[%emt 0:00:00]} 37. Rb5 {[%emt 0:00:46]} Ra6 {[%emt 0:00:28]} 38. Rb7 {[%emt 0:01:00]} Kg8 {[%emt 0:00:52]} 39. g3 {[%emt 0:00:23]} Bxg3 {[%emt 0:00:30]} 40. Qd3 {[%emt 0:00:00]} Rxa4 {[%emt 0:01:06]} 41. Qd7 {[%emt 0:03:02]} Ra1+ {[%emt 0:03:30]} 42. Kg2 {[%emt 0:01:30]} Rf8 {[%emt 0:01:30]} 43. Kxg3 {[%emt 0:00:00]} Ra3+ {[%emt 0:03:30]} 44. Kh4 {[%emt 0:03:00]} h5 {[%emt 0:05:05]} 45. c6 {[%emt 0:02:30]} hxg4 {[%emt 0:01:00]} 46. c7 {[%emt 0:01:30]} Raa8 {[%emt 0:00:05]} 47. Qb5 {[%emt 0:00:30]} Rac8 {[%emt 0:00:24]} 48. Qb6 {[%emt 0:01:30]} 1-0

[Event "TUR-chT Superleague 2018"]
[Site "Ankara"]
[Date "2018.07.29"]
[Round "5"]
[White "Szczepkowska, Karina"]
[Black "Ozturk, Kubra"]
[Result "0-1"]
[ECO "C45"]
[WhiteElo "2356"]
[BlackElo "2330"]
[Annotator "NA"]
[PlyCount "54"]
[EventDate "2018.07.25"]
[EventType "team-tourn"]
[EventCountry "TUR"]
[SourceTitle "playchess.com"]
[Source "ChessBase"]
[SourceQuality "1"]
[TimeControl "40/5400+30:1800+30"]

1. e4 {[%emt 0:00:30]} e5 {[%emt 0:01:00]} 2. Nf3 {[%emt 0:00:30]} Nc6 {[%emt 0:00:30]} 3. d4 {[%emt 0:00:30]} exd4 {[%emt 0:00:30]} 4. Nxd4 {[%emt 0:00:00]} Bc5 {[%emt 0:00:00]} 5. Nb3 {[%emt 0:00:00] LiveBook: 1191 Partien} (5. Be3 $5 {[%cal Rd4c6]} Qf6 6. c3 $11) 5... Bb6 {[%emt 0:03:00]} 6. Nc3 {[%emt 0:00:30]} Nf6 {[%emt 0:00:30]} 7. Qe2 {[%emt 0:00:30]} d6 {[%emt 0:01:30]} 8. Be3 {[%emt 0:03:30]} O-O {[%emt 0:03:30]} 9. O-O-O {[%emt 0:08:30]} Bxe3+ {[%emt 0:04:30]} 10. Qxe3 {[%emt 0:00:00]} Qe7 {[%emt 0:02:30]} 11. f3 {[%emt 0:05:00]} a5 $14 {[%emt 0:05:30]} 12. g4 {[%emt 0:11:30]} a4 {[%emt 0:02:30]} 13. Nd4 {[%emt 0:00:30]} a3 {[%emt 0:07:30]} 14. b3 {[%emt 0:00:30]} Qe5 {[%emt 0:14:30]} 15. Ndb5 {[%emt 0:17:30]} Be6 {[%emt 0:23:30]} 16. f4 {[%emt 0:17:30]} Nxg4 {[%emt 0:01:30]} 17. Qg3 {[%emt 0:00:30]} Qc5 {[%emt 0:06:30]} 18. f5 {[%emt 0:00:00]} Ne3 {[%emt 0:01:23]} 19. Rd3 {[%emt 0:06:00]} Nxf1 {[%emt 0:04:32]} 20. Rxf1 {[%emt 0:00:30]} Nb4 {[%emt 0:02:29]} 21. Rdd1 {[%emt 0:06:30]} Bd7 {[%emt 0:08:13]} 22. f6 {[%emt 0:10:02]} g6 {[%emt 0:00:04]} 23. Kb1 {[%emt 0:03:37]} Bxb5 {[%emt 0:02:14]} 24. Rf5 {[%emt 0:01:07]} d5 {[%emt 0:00:14]} 25. Rdxd5 {[%emt 0:04:14]} Nxd5 {[%emt 0:00:36]} 26. Nxd5 {[%emt 0:00:29]} Qd4 {[%emt 0:00:38]} 27. Nc3 {[%emt 0:01:27]} Rfd8 {[%emt 0:00:26]} 0-1

[Event "TUR-chT Superleague 2018"]
[Site "Ankara"]
[Date "2018.07.29"]
[Round "5"]
[White "Unuk, Laura"]
[Black "Buksa, Nataliya"]
[Result "0-1"]
[ECO "A45"]
[WhiteElo "2355"]
[BlackElo "2337"]
[Annotator "NA"]
[PlyCount "72"]
[EventDate "2018.07.25"]
[EventType "team-tourn"]
[EventCountry "TUR"]
[SourceTitle "playchess.com"]
[Source "ChessBase"]
[SourceQuality "1"]
[TimeControl "40/5400+30:1800+30"]

1. d4 {[%emt 0:00:30]} Nf6 {[%emt 0:01:00]} 2. Bg5 {[%emt 0:02:30]} Ne4 {[%emt 0:00:30]} 3. h4 {[%emt 0:00:30]} d5 {[%emt 0:05:30]} 4. e3 {[%emt 0:00:00]} Qd6 {[%emt 0:07:30]} 5. c3 {[%emt 0:12:00]} Nxg5 {[%emt 0:18:30]} 6. hxg5 {[%emt 0:01:30]} Bf5 $14 {[%emt 0:01:30]} 7. Nd2 {[%emt 0:04:30]} Nc6 {[%emt 0:06:30]} 8. Ngf3 {[%emt 0:04:30]} g6 {[%emt 0:04:30]} 9. Qa4 {[%emt 0:08:30]} Bg7 {[%emt 0:06:30]} 10. b4 {[%emt 0:16:30]} O-O {[%emt 0:03:30]} 11. b5 {[%emt 0:00:30]} Nd8 {[%emt 0:01:30]} 12. c4 {[%emt 0:02:30]} dxc4 {[%emt 0:01:30]} 13. Bxc4 {[%emt 0:01:30]} c6 {[%emt 0:05:30]} 14. Rd1 {[%emt 0:04:30]} Be6 {[%emt 0:03:30]} 15. bxc6 {[%emt 0:09:30]} Qxc6 {[%emt 0:00:30]} 16. Bb5 {[%emt 0:06:30]} Qd5 {[%emt 0:01:30]} 17. Bc4 {[%emt 0:09:29]} Qd7 {[%emt 0:00:30]} 18. Bb5 {[%emt 0:00:27]} Qd5 {[%emt 0:00:00]} 19. Nb3 {[%emt 0:00:54]} Rc8 {[%emt 0:03:00]} 20. Bd3 {[%emt 0:00:31]} Qc6 {[%emt 0:02:30]} 21. Qb4 {[%emt 0:05:47]} Qd6 {[%emt 0:06:23]} 22. Qd2 {[%emt 0:01:27]} Bxb3 {[%emt 0:01:00]} 23. axb3 {[%emt 0:00:30]} Nc6 {[%emt 0:00:00]} 24. Bc4 {[%emt 0:01:46]} a6 {[%emt 0:00:00]} 25. e4 {[%emt 0:01:14]} b5 {[%emt 0:01:00]} 26. Be2 {[%emt 0:03:33]} Rfd8 {[%emt 0:01:35]} 27. Kf1 {[%emt 0:01:06]} Nxd4 {[%emt 0:02:08]} 28. Qe3 {[%emt 0:00:03]} Qb4 {[%emt 0:03:09]} 29. Nxd4 {[%emt 0:00:29]} Rxd4 {[%emt 0:00:10]} 30. Qh3 {[%emt 0:01:00]} Rxd1+ {[%emt 0:00:30]} 31. Bxd1 {[%emt 0:00:30]} Rd8 {[%emt 0:00:00]} 32. Be2 {[%emt 0:00:41]} Qxe4 {[%emt 0:00:46]} 33. g3 {[%emt 0:00:19]} Rd2 {[%emt 0:02:45]} 34. Bg4 {[%emt 0:00:05]} Rb2 {[%emt 0:00:00]} 35. Bd1 {[%emt 0:01:06]} Rb1 {[%emt 0:00:31]} 36. Qc8+ {[%emt 0:00:54]} Bf8 {[%emt 0:00:30]} 0-1